[Event "FRA-ch Teams Top 16-B 2022"]
[Site "Chartres"]
[Date "2022.06.13"]
[Round "5.7"]
[White "Heinz, Timothee"]
[Black "Goldsztejn, Gildas"]
[Result "1/2-1/2"]
[ECO "A81"]
[WhiteElo "2381"]
[BlackElo "2413"]
[Annotator "TA"]
[PlyCount "55"]
[EventDate "2022.06.09"]
[EventType "team-tourn"]
[EventCountry "FRA"]
[SourceTitle "playchess.com"]
[Source "ChessBase"]
[SourceQuality "1"]
[TimeControl "40/5400+30:1800+30"]

{[%evp 9,55,33,26,-4,-11,-10,0,0,0,6,65,39,89,24,137,49,49,42,69,36,37,31,52,76,123,45,46,6,34,0,18,28,41,29,83,89,93,85,102,100,91,99,109,0,0,0,130,84]} 1. d4 {[%emt 0:00:06]} f5 {[%emt 0:00:09]} 2. g3 {[%emt 0:00:17]} Nf6 {[%emt 0:00:05]} 3. Bg2 {[%emt 0:00:04]} g6 {[%emt 0:00:06]} 4. c3 {[%emt 0:00:16]} Bg7 {[%emt 0:00:17]} 5. Nd2 {[%emt 0:00:19]} Nc6 {[%emt 0:21:21]} 6. e4 {[%emt 0:02:38] A81: Dutch Defence: 2 g3.} fxe4 {[%emt 0:06:46]} 7. Nxe4 {[%emt 0:00:06]} Nxe4 {[%emt 0:03:15]} 8. Bxe4 {[%emt 0:00:04] The position is equal.} d5 {[%emt 0:00:22]} 9. Bg2 {[%emt 0:00:08]} O-O {[%emt 0:19:12]} (9... e5 $11) 10. Bf4 {[%emt 0:03:18] [#]} a5 $146 {[%emt 0:02:28]} (10... Re8 $14) ({Predecessor:} 10... Kh8 11. Ne2 Bg4 12. h3 Bf5 13. O-O Be4 14. f3 Bf5 15. g4 Bc8 16. Bg3 e5 17. dxe5 Nxe5 18. Bxe5 Bxe5 {½-½ (45) Nosenko,A (2473)-Babionyshev,V (2210) Kiev 2002}) 11. a4 {[%emt 0:06:46]} (11. Nf3 $16) 11... b6 {[%emt 0:03:09]} (11... Kh8 $11) 12. Ne2 {[%emt 0:01:17]} (12. h4 $1 $16) 12... Bb7 $14 {[%emt 0:00:49]} 13. Qb3 {[%emt 0:24:10]} e6 {[%emt 0:00:14]} 14. O-O {[%emt 0:01:57]} Ba6 {[%emt 0:01:50]} 15. Qc2 {[%emt 0:01:11]} g5 {[%emt 0:01:45]} 16. Be3 {[%emt 0:00:22]} e5 {[%emt 0:00:06] [#]} (16... Kh8 $142) 17. dxe5 {[%emt 0:04:45]} ({White should try} 17. Bxg5 $1 $16 {[%mdl 512]} Qd7 (17... Qxg5 18. Bxd5+) 18. dxe5 Nxe5 19. Rfd1) 17... Nxe5 {[%emt 0:02:37]} 18. Bd4 {[%emt 0:00:40]} Re8 {[%emt 0:08:27]} 19. Rfd1 {[%emt 0:05:08]} c6 {[%emt 0:02:56]} 20. Bxe5 {[%emt 0:02:32]} Rxe5 {[%emt 0:00:07]} 21. Nd4 {[%emt 0:00:55]} Qf6 {[%emt 0:07:39]} (21... Qd7 $11) 22. Re1 $1 $16 {[%emt 0:15:58] Threatens to win with Rxe5.} Rae8 {[%emt 0:08:16][%cal Ba8e8,Be8e5,Be5e2][%mdl 32]} 23. Rxe5 {[%emt 0:02:08]} Rxe5 {[%emt 0:00:02]} 24. Qb3 {[%emt 0:01:19]} c5 {[%emt 0:00:06] ...Bc4 is the strong threat.} (24... Qe7 $2 25. Nxc6 (25. Nf3 Rf5 $16) 25... Re1+ 26. Bf1 $1 {[%mdl 512]} Rxf1+ 27. Rxf1 $18) 25. Bxd5+ {[%emt 0:01:16]} Kh8 {[%emt 0:00:33]} 26. Nb5 {[%emt 0:14:34]} (26. Nf3 $16 Re2 27. h3) 26... Re2 $11 {[%emt 0:00:06]} 27. Rf1 {[%emt 0:00:20]} Bc8 {[%emt 0:00:03] [#]} (27... Rd2 $1 $11 {remains equal.}) 28. Na3 {[%emt 0:04:30] Weighted Error Value: White=0.32/Black=0.33} ({Better is} 28. Qd1 $1 {[%cal Rd1e2]} Rxb2 29. Bc4) 1/2-1/2

[Event "FRA-ch Teams Top 16-B 2022"]
[Site "Chartres"]
[Date "2022.06.13"]
[Round "5.8"]
[White "Guichard, Pauline"]
[Black "Monpeurt, Cyrielle"]
[Result "1-0"]
[ECO "D10"]
[WhiteElo "2377"]
[BlackElo "2172"]
[Annotator "TA"]
[PlyCount "67"]
[EventDate "2022.06.09"]
[EventType "team-tourn"]
[EventCountry "FRA"]
[SourceTitle "playchess.com"]
[Source "ChessBase"]
[SourceQuality "1"]
[TimeControl "40/5400+30:1800+30"]

{[%evp 10,67,28,24,38,43,37,45,53,46,30,48,26,50,53,55,47,34,48,40,16,26,45,40,79,73,162,69,73,68,87,72,81,72,212,208,209,179,263,247,258,203,203,209,497,523,525,507,487,523,502,507,681,644,623,484,1446,1352,1533,1302]} 1. d4 {[%emt 0:00:03]} d5 {[%emt 0:00:17]} 2. c4 {[%emt 0:00:27]} c6 {[%emt 0:00:06]} 3. Nc3 {[%emt 0:00:21]} Nf6 {[%emt 0:00:14]} 4. e3 {[%emt 0:00:26]} Bf5 {[%emt 0:00:30]} 5. cxd5 {[%emt 0:00:27]} cxd5 {[%emt 0:00:16]} 6. Qb3 {[%emt 0:00:18]} Nc6 {[%emt 0:00:55] is more profitable than 6...Bc8 at the moment. D10: Slav Defence: 3 cxd5 (without early Nf3) and 3 Nc3.} 7. Qxb7 {[%emt 0:00:13]} Bd7 $1 {[%emt 0:00:11] [#] aiming for ...Rb8.} 8. Qb3 {[%emt 0:00:22]} Rb8 {[%emt 0:00:31] White is slightly better.} 9. Qd1 {[%emt 0:00:08]} e5 {[%emt 0:00:12]} 10. Nf3 {[%emt 0:00:37]} Bd6 {[%emt 0:01:10]} 11. dxe5 {[%emt 0:00:41]} Nxe5 {[%emt 0:00:10]} 12. Nd4 {[%emt 0:00:17]} O-O {[%emt 0:00:38]} 13. Be2 {[%emt 0:00:11]} Ne4 {[%emt 0:02:07]} 14. O-O {[%emt 0:09:41]} Nxc3 {[%emt 0:02:35]} 15. bxc3 {[%emt 0:00:31]} Qc7 {[%emt 0:00:15]} 16. a4 {[%emt 0:03:25] [#]} Ng6 $146 {[%emt 0:14:43]} ({Predecessor:} 16... Nc4 17. g3 Be5 18. Bf3 Qc5 19. Qc2 Rfd8 20. Rd1 g6 21. a5 h5 22. Bg2 a6 {½-½ (40) Lemutov,I (2374)-Wharrier,J (2347) ICCF email 2014}) 17. h3 {[%emt 0:04:35]} Bh2+ {[%emt 0:13:44]} 18. Kh1 {[%emt 0:00:08]} Be5 $1 {[%emt 0:00:03]} 19. Ba3 {[%emt 0:18:32]} Rfe8 {[%emt 0:05:39]} 20. Rc1 {[%emt 0:00:58]} Qc8 {[%emt 0:04:46][%cal Od7h3]} 21. Bg4 {[%emt 0:06:46][%cal Be2g4,Bg4f3,Bf3d5][%mdl 32]} f5 {[%emt 0:01:41] [#] Loses the game.} (21... Bf6 $16) 22. Bf3 $1 $18 {[%emt 0:04:04]} Kh8 {[%emt 0:05:55]} 23. Bxd5 {[%emt 0:02:48]} f4 {[%emt 0:01:42]} (23... Qa6 $142 24. Qh5 Red8) 24. Qh5 {[%emt 0:09:14]} Bf6 {[%emt 0:11:02] Threatens to win with ...Re5.} 25. Bd6 {[%emt 0:05:11][%csl LRb8,LRf4] Prevents Re5.} Rb6 {[%emt 0:08:55]} 26. Bxf4 {[%emt 0:01:16]} Nh4 $2 {[%emt 0:06:24]} (26... Nxf4 27. exf4 g6) 27. a5 {[%emt 0:10:05] White is clearly winning.} Ra6 {[%emt 0:02:20]} 28. Rb1 {[%emt 0:05:31] Rb8 is the strong threat.} g6 {[%emt 0:04:15]} 29. Qe2 {[%emt 0:01:16]} Rxa5 {[%emt 0:00:19]} 30. c4 {[%emt 0:02:52][%cal Bc3c4,Bc4d5,Bd5e6][%mdl 32]} Rxd5 {[%emt 0:05:18]} 31. cxd5 {[%emt 0:07:43]} Bxh3 {[%emt 0:00:07]} 32. Rg1 {[%emt 0:00:24]} ({Not} 32. Rfc1 $2 Bxg2+ 33. Kg1 Qh3 $19) 32... Be5 {[%emt 0:04:31]} (32... Nxg2 $142 33. Rxg2 Bxg2+ 34. Kxg2 Bxd4) 33. Ne6 {[%emt 0:03:13]} Rxe6 {[%emt 0:03:08]} 34. dxe6 {[%emt 0:00:07] Weighted Error Value: White=0.08 (flawless) /Black=0.33} 1-0

[Event "FRA-ch Teams Top 16-B 2022"]
[Site "Chartres"]
[Date "2022.06.13"]
[Round "5.9"]
[White "Erigaisi Arjun"]
[Black "Le Hetet, Nicolas"]
[Result "1-0"]
[ECO "B32"]
[WhiteElo "2675"]
[BlackElo "2372"]
[Annotator "TA"]
[PlyCount "115"]
[EventDate "2022.06.09"]
[EventType "team-tourn"]
[EventCountry "FRA"]
[SourceTitle "playchess.com"]
[Source "ChessBase"]
[SourceQuality "1"]
[TimeControl "40/5400+30:1800+30"]

{[%evp 15,115,27,59,55,50,53,59,58,68,55,55,62,61,53,79,62,43,42,46,24,60,60,55,59,54,10,53,-13,-14,-4,0,0,0,-20,-4,-22,-6,-5,0,-8,0,-14,-14,-18,0,-14,-18,-13,12,0,0,0,0,0,0,0,9,0,6,-28,26,0,102,90,79,103,221,204,393,367,364,334,328,337,377,377,370,320,387,237,199,146,141,29,29,0,25,35,293,300,512,477,722,585,557,540,652,645,622,524,29984,29985]} 1. e4 {[%emt 0:00:05]} c5 {[%emt 0:00:25]} 2. Nf3 {[%emt 0:00:07][%cal Bg1f3,Bf3d4,Bd4b5][%mdl 32]} Nc6 {[%emt 0:00:13]} 3. d4 {[%emt 0:00:06]} cxd4 {[%emt 0:00:15]} 4. Nxd4 {[%emt 0:00:06]} e5 {[%emt 0:00:13]} 5. Nb5 {[%emt 0:00:06]} d6 {[%emt 0:00:09]} 6. N1c3 {[%emt 0:00:06]} a6 {[%emt 0:00:19]} 7. Na3 {[%emt 0:00:06]} b5 {[%emt 0:04:02]} 8. Nd5 {[%emt 0:00:35]} Nge7 {[%emt 0:00:08]} 9. Bd3 {[%emt 0:00:15] B32: Sicilian: Löwenthal and Kalashnikov Variations.} Nxd5 {[%emt 0:05:10]} 10. exd5 {[%emt 0:00:07]} Ne7 {[%emt 0:00:31]} 11. c4 {[%emt 0:00:26] White is slightly better.} g6 {[%emt 0:03:32]} 12. cxb5 {[%emt 0:05:01]} Bg7 $1 {[%emt 0:04:33]} 13. bxa6 {[%emt 0:01:33]} O-O {[%emt 0:02:10]} 14. O-O $1 {[%emt 0:00:24]} Bxa6 {[%emt 0:01:39]} 15. Bxa6 {[%emt 0:02:00]} Rxa6 {[%emt 0:00:04]} 16. Nb5 {[%emt 0:03:08]} Qd7 {[%emt 0:04:10]} 17. Nc3 {[%emt 0:01:06] [#]} Nf5 $146 {[%emt 0:08:06]} ({Predecessor:} 17... Qb7 18. Rb1 Rc8 19. Bg5 Nf5 20. Qd2 Nd4 21. Be3 Raa8 22. Rfc1 Rc7 23. b3 Qb4 {0-1 (48) Piekielny,P (2121)-Suder,J (2174) Szklarska Poreba 2021}) 18. a4 {[%emt 0:02:50]} Qb7 {[%emt 0:10:17]} 19. Rb1 {[%emt 0:02:05]} Rc8 {[%emt 0:04:15][%cal Oc8c3] ...Rxc3! is the strong threat.} 20. Be3 {[%emt 0:06:48]} Nd4 {[%emt 0:10:02]} 21. Qd2 {[%emt 0:13:48]} (21. Qd3 $1 $14) 21... Qb4 $11 {[%emt 0:05:01][%mdl 1024] Black has compensation.} 22. Qd3 {[%emt 0:05:25]} Raa8 {[%emt 0:02:52]} 23. h3 {[%emt 0:02:15]} f5 {[%emt 0:03:03]} 24. Qd1 {[%emt 0:06:21]} Qb3 {[%emt 0:14:26]} 25. f3 {[%emt 0:03:33]} Rc4 {[%emt 0:04:37]} 26. Qd2 {[%emt 0:02:01]} Qb4 {[%emt 0:01:13]} 27. Rfd1 {[%emt 0:02:19]} Bf6 {[%emt 0:03:00]} 28. Qf2 {[%emt 0:01:10]} Rcc8 {[%emt 0:03:23]} 29. Kh1 {[%emt 0:01:20]} Kg7 {[%emt 0:00:30]} 30. Qd2 {[%emt 0:02:37]} Nb3 {[%emt 0:02:39]} 31. Qd3 {[%emt 0:00:08]} Nd4 {[%emt 0:01:24]} 32. Re1 {[%emt 0:01:50]} Bh4 {[%emt 0:00:56]} 33. Rf1 {[%emt 0:00:52]} Qc4 {[%emt 0:01:18]} 34. Qd2 {[%emt 0:01:01]} Nb3 {[%emt 0:01:20]} 35. Qd1 {[%emt 0:00:07]} Nd4 {[%emt 0:00:09]} 36. g4 {[%emt 0:04:03]} Bf6 {[%emt 0:01:35]} 37. f4 {[%emt 0:00:21][%cal Bf3f4,Bf4e5][%mdl 32]} h6 {[%emt 0:00:47]} (37... Kh8 $142) 38. Rg1 {[%emt 0:02:53] Hoping for gxf5.} Kh7 {[%emt 0:00:28]} (38... exf4 $11 {keeps the balance.} 39. Bxf4 g5) 39. gxf5 $16 {[%emt 0:02:04]} Nxf5 {[%emt 0:00:18]} 40. Qg4 {[%emt 0:00:07]} Rg8 {[%emt 0:00:44]} (40... Bg5 $16) 41. fxe5 $18 {[%emt 0:30:06]} Qd3 {[%emt 0:08:58]} (41... Nxe3 {was worth a try.} 42. Qxc4 Nxc4 43. exf6 Rgf8) 42. exf6 {[%emt 0:00:00]} Nxe3 {[%emt 0:07:13]} 43. Qg3 {[%emt 0:00:00]} Qd4 {[%emt 0:03:11]} 44. Qxd6 {[%emt 0:00:00]} (44. f7 Rg7 45. Qf2 (45. Qxd6 Rf8 $16) 45... Nf5 46. Qxd4 Nxd4 $18) 44... Ra7 {[%emt 0:01:31]} 45. Qe6 {[%emt 0:00:00]} Qf4 {[%emt 0:01:16]} 46. Qe4 {[%emt 0:00:00] Against Qf3+} Rxa4 {[%emt 0:01:06]} 47. Qxf4 {[%emt 0:00:00]} ({Weaker is} 47. Qxa4 Qf3+ 48. Kh2 Qf2+ 49. Kh1 Qf3+ 50. Kh2 Qf2+ 51. Kh1 Qf3+ $11) 47... Rxf4 {[%emt 0:00:07]} 48. Rg3 {[%emt 0:00:00] Against Rf3} (48. Rge1 $18 Rf3 49. Kg1) 48... Nf5 $16 {[%emt 0:01:21] [#]} 49. Rg4 {[%emt 0:00:00]} (49. Rd3 $1 $16) 49... Rf3 $1 $11 {[%emt 0:01:28]} 50. Ra1 {[%emt 0:00:00]} h5 {[%emt 0:01:27]} 51. Rga4 {[%emt 0:00:00]} Re8 {[%emt 0:03:43][%mdl 8192] This costs Black the game.} ({Black should try} 51... Nd6 $14) 52. Ne4 $18 {[%emt 0:00:00] And now Ng5+ would win.} ({Stronger than} 52. Ra7+ Kh6 53. f7 Rxh3+ 54. Kg2 Rg3+ 55. Kh2 Rf8 $14) 52... Rxh3+ $2 {[%emt 0:02:44] [#]} (52... Kh6 {is a better defense.} 53. Kg2 Nh4+ 54. Kg1 Rxh3) 53. Kg2 $1 {[%emt 0:00:50]} Re3 {[%emt 0:00:45]} (53... Rb3 $142 54. d6 Kh6) 54. f7 {[%emt 0:04:06]} Rf8 {[%emt 0:01:14]} 55. Ng5+ {[%emt 0:00:57]} Kh6 {[%emt 0:00:09] [#]} 56. Ra8 $1 {[%emt 0:00:09] Active counter play!} Kxg5 {[%emt 0:01:20]} 57. Rxf8 {[%emt 0:00:09]} Kg4 {[%emt 0:00:25]} 58. Ra4+ {[%emt 0:00:15] Weighted Error Value: White=0.16 (very precise) /Black=0.50} 1-0

[Event "FRA-ch Teams Top 16-B 2022"]
[Site "Chartres"]
[Date "2022.06.13"]
[Round "5.10"]
[White "Favarel, Julien"]
[Black "Mendonca, Leon Luke"]
[Result "0-1"]
[ECO "B12"]
[WhiteElo "2312"]
[BlackElo "2551"]
[Annotator "TA"]
[PlyCount "89"]
[EventDate "2022.06.09"]
[EventType "team-tourn"]
[EventCountry "FRA"]
[SourceTitle "playchess.com"]
[Source "ChessBase"]
[SourceQuality "1"]
[TimeControl "40/5400+30:1800+30"]

{[%evp 9,89,12,11,-7,-6,-18,-14,-14,0,-16,-18,-18,-18,-19,31,31,32,32,32,32,32,31,30,30,34,37,28,29,33,29,33,26,17,34,31,26,31,18,32,8,11,0,0,0,0,0,0,0,0,0,0,0,22,29,30,28,42,0,0,0,0,0,0,-8,-8,-76,-59,-462,-509,-486,-461,-460,-441,-1292,-1258,-4137,-4137,-5643,-4833,-4129,-2387,-5810]} 1. e4 {[%emt 0:00:04][%cal Be2e4,Be4e5][%mdl 32]} c6 {[%emt 0:01:14]} 2. d4 {[%emt 0:00:07]} d5 {[%emt 0:00:21]} 3. e5 {[%emt 0:00:11]} Bf5 {[%emt 0:00:49]} 4. c4 {[%emt 0:00:13]} e6 {[%emt 0:01:12]} 5. Nc3 {[%emt 0:00:13]} Ne7 {[%emt 0:02:59][%cal Oc6c5]} 6. Nf3 {[%emt 0:00:30] B12: Caro-Kann: Advance Variation.} Bg4 {[%emt 0:02:09]} 7. Bg5 {[%emt 0:09:06]} h6 {[%emt 0:03:18] [#]} 8. Be3 $146 {[%emt 0:00:22] The position is equal.} ({Predecessor:} 8. Bh4 Qc7 9. Be2 Nf5 10. Bg3 Nxg3 11. fxg3 c5 12. cxd5 cxd4 13. Qxd4 Bxf3 14. Bxf3 {1-0 (32) Meirelles,O-Ferreira,P Batatais 2015}) 8... Nf5 {[%emt 0:03:36]} 9. h3 {[%emt 0:02:52]} Bxf3 {[%emt 0:00:37]} 10. Qxf3 {[%emt 0:00:30]} dxc4 {[%emt 0:03:01]} 11. O-O-O {[%emt 0:08:53]} Bb4 {[%emt 0:03:34]} (11... Nxe3 $11 12. fxe3 Bb4) 12. d5 $1 $14 {[%emt 0:04:36]} cxd5 {[%emt 0:03:55] [#]} (12... Bxc3 $2 13. dxe6 Qe7 14. Qxf5 (14. bxc3 Qxe6 15. Bf4 Nd7 $11) 14... Bxb2+ 15. Kxb2 $18) 13. Nxd5 {[%emt 0:00:27] And now Nf6+ would win.} Qa5 $1 {[%emt 0:01:44] [#]} 14. Bb6 $1 {[%emt 0:00:41]} axb6 {[%emt 0:00:50]} 15. Nc7+ {[%emt 0:00:31]} Kf8 $1 {[%emt 1:08:41]} (15... Ke7 $2 16. Qxb7 Rd8 17. Rxd8 (17. Nxa8+ Rd7 $18) (17. Qxa8 $2 Rxd1+ 18. Kxd1 Qxe5 $19) 17... Kxd8 18. Nxa8 $18) 16. Qxb7 {[%emt 0:06:26] White threatens Rd8+ and mate.} ({Don't blunder} 16. Rd8+ $2 Ke7 17. Rxh8 Qxa2 18. Nd5+ (18. Nxa8 $2 {gets mated.} Qa1+ 19. Kc2 Nd4#) 18... exd5 $19) 16... Qa7 {[%emt 0:00:00]} (16... Qxe5 $2 17. Nxa8 g6 18. Nxb6 $18) 17. Qxa7 {[%emt 0:01:46]} Rxa7 {[%emt 0:00:00]} (17... Bd2+ $2 18. Rxd2 Rxa7 19. Rd8+ Ke7 20. Rxh8 $18) 18. Rd8+ {[%emt 0:00:09]} Ke7 {[%emt 0:00:00]} 19. Rxh8 {[%emt 0:00:04]} Nc6 {[%emt 0:00:00]} 20. Nb5 {[%emt 0:00:20]} Rxa2 {[%emt 0:00:00] ( -> ...Ra1+)} 21. Kb1 {[%emt 0:00:08] Prevents Ra1+.} Ra5 {[%emt 0:00:00]} 22. Bxc4 {[%emt 0:00:20]} Nxe5 {[%emt 0:03:30]} 23. Be2 {[%emt 0:00:19]} Bc5 {[%emt 0:00:00]} 24. g4 {[%emt 0:09:53]} Nh4 {[%emt 0:00:00]} 25. Rb8 {[%emt 0:05:40]} Ra4 $1 {[%emt 0:00:00] Active counter play!} 26. Nc3 {[%emt 0:12:03]} Rb4 {[%emt 0:00:00]} 27. Rd1 {[%emt 0:13:58]} Nhg6 {[%emt 0:00:00]} 28. Rb7+ {[%emt 0:08:48]} Kf6 {[%emt 0:00:00]} 29. Bd3 {[%emt 0:00:39]} Nxd3 {[%emt 0:00:00]} 30. Rxd3 {[%emt 0:00:02]} Nf4 {[%emt 0:01:33]} 31. Rdd7 {[%emt 0:01:34]} Kg5 $1 {[%emt 0:01:44]} 32. Rxf7 {[%emt 0:01:47]} Kh4 {[%emt 0:00:50]} 33. Kc2 {[%emt 0:06:18]} g5 {[%emt 0:00:47]} 34. f3 {[%emt 0:03:59]} Kxh3 {[%emt 0:00:22]} 35. Rf6 {[%emt 0:03:32]} Kg2 {[%emt 0:00:02]} 36. Rxh6 {[%emt 0:00:26]} Kxf3 {[%emt 0:00:08]} 37. Ra7 {[%emt 0:00:45]} (37. Rh8 $11 {remains equal.}) 37... Kxg4 $17 {[%emt 0:00:32]} 38. Ra4 $2 {[%emt 0:00:37][%mdl 8192] Loses the game.} ({White should play} 38. Rh8 $15) 38... Rxa4 $19 {[%emt 0:00:50] Black is clearly winning.} 39. Nxa4 {[%emt 0:00:00][%mdl 4096] Endgame KRN-KBN} Bf2 {[%emt 0:00:56] aiming for ...Kf3.} 40. Nc3 {[%emt 0:01:41] [#]} Kf3 {[%emt 0:00:19] Inhibits Ne4.} 41. Rf6 {[%emt 0:10:34]} (41. Nb1 $142 Be3 42. Nd2+ Bxd2 43. Kxd2) 41... g4 {[%emt 0:01:51][%cal Bg5g4,Bg4g3,Bg3g2][%mdl 32] Hoping for ...g3.} 42. Kd2 {[%emt 0:00:30]} g3 {[%emt 0:00:56] Threatens to win with ...g2.} 43. Ne2 {[%emt 0:00:12]} Be3+ {[%emt 0:01:33]} 44. Ke1 {[%emt 0:01:20]} g2 {[%emt 0:00:41]} 45. Kd1 {[%emt 0:19:54] Weighted Error Value: White=0.62/Black=0.02 (flawless)} 0-1

[Event "FRA-ch Teams Top 16-B 2022"]
[Site "Chartres"]
[Date "2022.06.13"]
[Round "5.11"]
[White "Rakotomaharo, Fy Antenaina"]
[Black "Ternault, Mathieu"]
[Result "1/2-1/2"]
[ECO "C02"]
[WhiteElo "2467"]
[BlackElo "2367"]
[Annotator "TA"]
[PlyCount "81"]
[EventDate "2022.06.09"]
[EventType "team-tourn"]
[EventCountry "FRA"]
[SourceTitle "playchess.com"]
[Source "ChessBase"]
[SourceQuality "1"]
[TimeControl "40/5400+30:1800+30"]

{[%evp 14,81,-4,0,16,11,4,0,0,0,3,0,0,0,24,17,20,16,19,-8,37,20,32,21,51,31,35,36,50,39,79,87,89,89,89,81,91,77,84,84,84,84,84,84,90,86,77,13,14,8,8,0,0,0,0,0,0,0,0,0,0,0,0,0,0,0,0,0,0,0]} 1. e4 {[%emt 0:00:03]} e6 {[%emt 0:00:08]} 2. d4 {[%emt 0:00:06]} d5 {[%emt 0:00:04]} 3. e5 {[%emt 0:00:04]} c5 {[%emt 0:00:04]} 4. c3 {[%emt 0:00:04]} Nc6 {[%emt 0:00:27]} 5. Nf3 {[%emt 0:00:07]} Bd7 {[%emt 0:00:08]} 6. Be2 {[%emt 0:00:19]} Nge7 {[%emt 0:00:32]} 7. Na3 {[%emt 0:00:06]} cxd4 {[%emt 0:00:49]} 8. cxd4 {[%emt 0:00:07]} Ng6 {[%emt 0:00:27] C02: French: Advance Variation.} 9. h4 {[%emt 0:00:06]} Be7 {[%emt 0:00:19] has lost popularity (9...Bxa3).} 10. g3 {[%emt 0:04:50]} O-O {[%emt 0:16:51]} 11. h5 {[%emt 0:22:36]} Nh8 {[%emt 0:00:18]} 12. Bf4 {[%emt 0:00:06] [#]} Rc8 $146 {[%emt 0:14:30]} ({Predecessor:} 12... f6 13. exf6 Bxf6 14. Nc2 Nf7 15. Qd2 Qe7 16. O-O Nd6 17. Ne5 Ne4 18. Qe3 Be8 {½-½ (38) Godbole,A (2178)-De Francesco,K (2314) Zadar 2017}) 13. Kf1 {[%emt 0:03:55]} a6 {[%emt 0:03:06]} 14. Nc2 {[%emt 0:03:00]} f6 {[%emt 0:05:07]} 15. Kg2 {[%emt 0:06:18]} Nf7 {[%emt 0:04:04]} 16. Bd3 {[%emt 0:11:53]} f5 {[%emt 0:17:01]} 17. Qd2 {[%emt 0:23:44]} Na5 {[%emt 0:04:58]} 18. b3 {[%emt 0:00:14]} Bb5 {[%emt 0:03:08]} 19. Bxb5 {[%emt 0:02:44]} axb5 {[%emt 0:00:10]} 20. Nb4 {[%emt 0:00:10][%cal Bc2b4,Bb4d3,Bd3f4][%mdl 32]} Nc6 {[%emt 0:05:03]} 21. Nd3 {[%emt 0:00:17]} Qa5 {[%emt 0:10:33]} 22. Qxa5 {[%emt 0:02:17]} Nxa5 {[%emt 0:00:02]} 23. Bd2 {[%emt 0:00:10]} Nc6 {[%emt 0:01:28]} 24. Nf4 {[%emt 0:03:05]} Ng5 {[%emt 0:04:39] [#]} 25. Nxd5 $1 {[%emt 0:00:53]} Nxf3 {[%emt 0:01:23]} 26. Nxe7+ {[%emt 0:00:09]} Nxe7 {[%emt 0:00:06]} 27. Kxf3 {[%emt 0:16:37]} Nc6 {[%emt 0:01:46] Against Bb4} 28. Be3 {[%emt 0:00:00]} Rfd8 {[%emt 0:00:23]} 29. Rhc1 {[%emt 0:00:00]} Rd5 {[%emt 0:01:21]} 30. a4 {[%emt 0:00:00]} (30. Kg2 $16) 30... bxa4 $1 $11 {[%emt 0:03:53] The position is equal.} 31. bxa4 {[%emt 0:00:00][%cal Oa4a5] next a5! is good for White.} Nxd4+ {[%emt 0:02:13]} 32. Kg2 {[%emt 0:00:00]} Rxc1 {[%emt 0:00:39]} 33. Rxc1 {[%emt 0:00:00][%mdl 4096] Endgame And now Rc8+ would win. KRB-KRN} Nc6 {[%emt 0:00:06]} 34. Rb1 {[%emt 0:00:00]} Ra5 {[%emt 0:01:01]} 35. h6 {[%emt 0:02:35]} gxh6 {[%emt 0:00:26]} 36. Rxb7 {[%emt 0:00:13]} Rxa4 {[%emt 0:00:15]} 37. Bxh6 {[%emt 0:00:09] Black must now prevent Rg7+.} Ra7 {[%emt 0:00:06]} 38. Rb6 {[%emt 0:00:28]} Rc7 {[%emt 0:00:46]} 39. Rb5 {[%emt 0:01:57]} Kf7 {[%emt 0:00:45]} 40. Rc5 {[%emt 0:00:07]} Rc8 {[%emt 0:00:39]} 41. Bg5 {[%emt 0:03:41] Weighted Error Value: White=0.07 (flawless) /Black=0.06 (flawless)} 1/2-1/2